Cogmind - Beta 10.2 @@@ ROGUE MODE // 2021.06.12 @ 06:09:23 Player: Exp. Geonium Core Result: Destroyed by B-75 Beast with Heavy Plasma Cannon Performance ------------- Evolutions (5) 2500 Regions Visited (20) 4000 Robots Destroyed (110) 550 Value Destroyed (6883) 6883 Prototype IDs (26) 520 Alien Tech Used (0) 0 Bonus (7596) 7596 TOTAL SCORE: 22049 Bonus ------- High Alert Combat Kills 602 Follower Combat Kills 2903 Entered Garrisons 1200 Used RIF Installer 3000 Aligned with FarCom 300 Friendly Fire -409 Cogmind --------- Core Integrity 0/1000 Matter 300/300 Energy 100/100 System Corruption 10% Temperature Cool (12) Movement Core (550) Ox10 Location -5/Factory Parts ------- > --- POWER (1) -------- (None) > --- PROPULSION (2) --- (None) > --- UTILITY (10) ----- High-capacity Storage Unit Relay Coupler [Demolisher] (32) Relay Coupler [Specialist] (27) > --- WEAPON (4) ------- (None) > --- INVENTORY (12) --- High-capacity Storage Unit Relay Coupler [ARC] (15) Relay Coupler [Swarmer] (50) Relay Coupler [Behemoth] (16) Relay Coupler [Behemoth] (17) Army-in-a-Box (15/30) Tesla Bomb Launcher Peak State ------------ > --- POWER ------------ Micro Fission Core > --- PROPULSION ------- Wheel > --- UTILITY ---------- High-capacity Storage Unit Relay Coupler [Sentry] Relay Coupler [Demolisher] Relay Coupler [Specialist] Army-in-a-Box > --- WEAPON ----------- KE Penetrator > --- INVENTORY -------- Relay Coupler [ARC] Relay Coupler [Behemoth] Relay Coupler [Behemoth] Tesla Bomb Launcher [Rating: 84] Favorites ----------- Power Light Nuclear Core Engine Light Ion Engine Power Core Light Nuclear Core Reactor Light Antimatter Reactor Propulsion Wheel Wheel Wheel Utility High-capacity Storage Unit Device Tractor Beam Storage High-capacity Storage Unit Processor Salvage Targeting Computer Hackware Relay Coupler [Sentry] Protection Improved Light Armor Plating Weapon Gauss Rifle Energy Gun Plasma Rifle Energy Cannon Beam Cannon Ballistic Gun Gauss Rifle Ballistic Cannon AWS/Autocannon Launcher Missile Launcher Special Weapon Remote Datajack Impact Weapon Mace Slashing Weapon Axe Special Melee Weapon Improved Datajack Build | -11 -10 -10 -9 -9 -9 -8 -8 -8 -8 -7 -7 -7 -7 -6 -6 -6 -6 -5 -5 -5 ------- Run | Scr Mat Min Mat Min Exi Min Mat Sto Gar Fac Gar Fac Gar Fac Gar Fac Gar Fac Gar Fac Slots Evolved 10 | . . . 2 . . . 2 . . 2 . . . 2 . . . 2 . . Power . | . . . . . . . . . . . . . . . . . . . . . Propulsion . | . . . . . . . . . . . . . . . . . . . . . Utility 8 | . . . 2 . . . . . . 2 . . . 2 . . . 2 . . Weapon 2 | . . . . . . . 2 . . . . . . . . . . . . . Parts Attached 223 | 5 4 . 3 2 6 2 9 15 7 12 31 9 9 5 18 11 25 20 17 13 Power 20 | 1 1 . . . . 1 . 2 1 1 2 1 2 1 1 . 1 3 1 1 Engine 5 | 1 1 . . . . . . . . . . 1 . . . . . 2 . . Core 13 | . . . . . . 1 . 2 1 1 2 . 2 1 . . . 1 1 1 Reactor 2 | . . . . . . . . . . . . . . . 1 . 1 . . . Propulsion 26 | 2 . . 1 1 2 . 1 3 . 1 1 2 2 . 1 . 1 3 1 4 Treads . | . . . . . . . . . . . . . . . . . . . . . Leg . | . . . . . . . . . . . . . . . . . . . . . Wheel 26 | 2 . . 1 1 2 . 1 3 . 1 1 2 2 . 1 . 1 3 1 4 Hover . | . . . . . . . . . . . . . . . . . . . . . Flight . | . . . . . . . . . . . . . . . . . . . . . Utility 91 | . 2 . 2 . 2 1 2 5 . 5 13 1 3 4 9 5 14 8 8 7 Device 15 | . 1 . . . . . . 2 . 1 4 . . . . . 2 2 2 1 Storage 13 | . 1 . 1 . 2 . . . . . 2 1 . . . . 2 2 1 1 Processor 3 | . . . . . . 1 . 2 . . . . . . . . . . . . Hackware 49 | . . . . . . . . . . 3 5 . 3 4 8 4 9 4 4 5 Protection 11 | . . . 1 . . . 2 1 . 1 2 . . . 1 1 1 . 1 . Artifact . | . . . . . . . . . . . . . . . . . . . . . Weapon 86 | 2 1 . . 1 2 . 6 5 6 5 15 5 2 . 7 6 9 6 7 1 Energy Gun 13 | 1 1 . . . . . 1 . . . 5 . . . 2 . 1 1 1 . Energy Cannon 1 | . . . . . 1 . . . . . . . . . . . . . . . Ballistic Gun 30 | 1 . . . 1 . . 4 2 1 . 3 4 1 . 1 4 3 . 5 . Ballistic Cannon 2 | . . . . . . . . 1 . . . . . . . . . 1 . . Launcher 5 | . . . . . 1 . . . 3 1 . . . . . . . . . . Special Weapon 10 | . . . . . . . . . . . . . 1 . 3 1 2 2 1 . Impact Weapon 4 | . . . . . . . . . . . 1 1 . . 1 . . 1 . . Slashing Weapon 9 | . . . . . . . 1 2 2 2 2 . . . . . . . . . Piercing Weapon . | . . . . . . . . . . . . . . . . . . . . . Special Melee Weapon 12 | . . . . . . . . . . 2 4 . . . . 1 3 1 . 1 Unidentified Prototypes 1 | . . . . . . . 1 . . . . . . . . . . . . . Parts Lost 86 | . 2 . 5 . . 1 1 10 . 1 13 1 4 . 5 6 7 9 10 11 Power 12 | . 1 . 1 . . . . 2 . . 2 . 1 . . 3 . . 1 1 Propulsion 19 | . . . 2 . . . 1 3 . . 1 1 2 . . . 1 3 1 4 Utility 21 | . . . . . . 1 . 2 . . 4 . 1 . 1 1 3 1 4 3 Weapon 34 | . 1 . 2 . . . . 3 . 1 6 . . . 4 2 3 5 4 3 Highest Loss Streak 10 | . 2 . 5 . . 1 1 9 . 1 5 1 2 . 3 4 6 4 10 6 Average Slot Usage (%) 79 | . 80 100 94 77 79 98 91 72 79 78 67 91 95 86 89 90 62 76 69 76 Core 3 | . . . . . . 10 9 3 7 7 4 3 5 6 1 . . 1 4 4 Reactor 1 | . . . . . . . . . . . . . . . 4 3 2 1 . . Wheel 9 | . 28 28 21 22 22 22 17 9 18 9 7 7 11 6 6 6 6 3 4 6 Device 3 | . 7 14 11 11 11 11 4 7 . 1 5 7 1 . . . 1 2 2 1 Storage 15 | . 12 14 22 22 22 22 18 18 18 15 9 15 23 20 20 20 4 10 10 9 Processor 2 | . . . . . . 10 9 7 18 5 . . . . . . . . . . Hackware 18 | . . . . . . . . . . 20 12 7 12 26 32 28 27 34 23 36 Protection 2 | . . . 11 11 11 . 4 2 . 2 7 14 7 . . 2 . . . . Energy Gun 2 | . 5 14 10 . . . . . . . 7 . . . 6 3 . 1 . . Ballistic Gun 9 | . 14 14 9 11 11 11 21 13 1 . 4 22 19 20 5 10 10 4 14 11 Ballistic Cannon 1 | . . . . . . . . 5 9 6 . . . . . . . 1 1 . Launcher 1 | . . . . . 2 11 4 . 6 . . . . . . . . . . . Special Weapon 2 | . . . . . . . . . . . . . 5 6 4 3 3 2 1 . Impact Weapon 1 | . . . . . . . . . . . 1 6 4 . 5 4 . 1 . . Special Melee Weapon 1 | . . . . . . . . . . 1 2 . . . . 2 2 3 1 2 Naked Turns . | . . . . . . . . . . . . . . . . . . . . . Heaviest Build 140 | 7 40 40 47 43 75 77 82 129 135 140 89 124 124 121 121 121 114 89 92 86 Greatest Support 28 | 26 26 26 26 20 20 20 26 26 26 28 28 28 28 28 28 28 28 28 10 20 Greatest Overweight (x) 42 | . 1 1 4 3 3 3 7 42 5 5 3 9 12 4 4 4 4 29 9 8 Average Overweight (x) 3 | . . 1 1 2 2 3 3 6 4 4 1 6 4 4 3 3 1 7 7 5 Largest Inventory Capacity 28 | 4 12 12 14 14 20 20 20 20 20 20 20 28 28 28 28 28 28 20 20 20 Average Capacity 19 | 4 11 12 14 14 16 20 20 20 20 20 14 20 28 28 28 28 9 19 19 18 Most Carried 28 | 1 4 8 11 13 20 20 20 20 20 20 20 24 25 26 28 28 28 20 20 20 Average Carried 16 | . 1 4 7 11 14 19 19 16 16 19 10 19 22 25 25 26 7 16 13 15 Final Capacity 28 | 4 12 12 14 14 20 20 20 20 20 20 20 28 28 28 28 28 20 20 20 12 Final Carried 28 | 1 4 8 11 13 20 20 20 15 20 19 20 24 25 24 28 28 20 17 20 12 Class Distribution -------------------- 26% | Botlord-Mutant 21% | Bothacker-Mutant 14% | Mutant 12% | Hauler-Skirmisher 6% | Hauler-Mutant 5% | Scavenger-Mutant 4% | Scavenger-Tank 3% | Bothacker-Tank Dominant Class ---------------- Mutant | -10/Materials Mutant | -10/Mines Mutant | -9/Materials Mutant | -9/Mines Mutant | -9/Exiles Hauler-Mutant | -8/Mines Hauler-Skirmisher | -8/Materials Hauler-Skirmisher | -8/Storage Hauler-Skirmisher | -8/Garrison Bothacker-Tank | -7/Factory Bothacker-Mutant | -7/Garrison Scavenger-Tank | -7/Factory Bothacker-Mutant | -7/Garrison Bothacker-Mutant | -6/Factory Bothacker-Mutant | -6/Garrison Botlord-Mutant | -6/Factory Botlord-Mutant | -6/Garrison Botlord-Mutant | -5/Factory Scavenger-Mutant | -5/Garrison Botlord-Mutant | -5/Factory Resources | -11 -10 -10 -9 -9 -9 -8 -8 -8 -8 -7 -7 -7 -7 -6 -6 -6 -6 -5 -5 -5 ----------- Run | Scr Mat Min Mat Min Exi Min Mat Sto Gar Fac Gar Fac Gar Fac Gar Fac Gar Fac Gar Fac Matter Collected 4723 | 215 142 40 . 65 . 125 104 315 207 182 343 126 319 406 421 284 552 317 377 183 Remotely 301 | . 20 40 . 65 . 125 51 . . . . . . . . . . . . . Salvage Created 3401 | . 212 73 . 65 . 59 122 624 495 262 132 185 134 61 124 264 231 296 . 62 Parts 219 | . 11 9 . 6 . 5 18 29 34 27 3 13 8 2 2 17 10 22 . 3 Haulers Intercepted 1 | . . . . . . . . 1 . . . . . . . . . . . . Recyclers Shooed 3 | . . . . . . . 1 . . . . . . . . 1 . 1 . . Parts Field Recycled . | . . . . . . . . . . . . . . . . . . . . . Retrieved Matter . | . . . . . . . . . . . . . . . . . . . . . Parts Self-Destructed . | . . . . . . . . . . . . . . . . . . . . . Prevented . | . . . . . . . . . . . . . . . . . . . . . Kills | -11 -10 -10 -9 -9 -9 -8 -8 -8 -8 -7 -7 -7 -7 -6 -6 -6 -6 -5 -5 -5 ------- Run | Scr Mat Min Mat Min Exi Min Mat Sto Gar Fac Gar Fac Gar Fac Gar Fac Gar Fac Gar Fac Combat Hostiles Destroyed 84 | . 5 . . 4 . 6 6 9 23 5 4 4 3 1 1 4 4 4 . 1 Melee 2 | . . . . . . . . . . 1 . . . . . 1 . . . . Guns 40 | . 5 . . 4 . 2 2 3 . . 3 4 3 1 1 3 4 4 . 1 Cannons 25 | . . . . . . . . 6 16 3 . . . . . . . . . . AOE 16 | . . . . . . 4 4 . 7 1 . . . . . . . . . . Classes Destroyed 12 | . 3 1 . . . . 1 2 . 3 . . 2 . . . . . . . Worker 8 | . . 4 . . . . . 2 . . . 1 . . . 1 . . . . Builder 5 | . . . . . . . . . . 2 . . . . . . . 3 . . Tunneler 1 | . . . . . . . . . . 1 . . . . . . . . . . Hauler 1 | . . . . . . . . 1 . . . . . . . . . . . . Recycler 5 | . 1 . . . . . . 2 . 2 . . . . . . . . . . Watcher 5 | . . . . . . . . 1 . 3 . 1 . . . . . . . . Swarmer 31 | . 3 . . 4 . 6 4 . 7 2 2 3 . . . . . . . . Grunt 35 | . 2 . . . . . . 5 15 . 2 . . . 1 1 4 4 . 1 Brawler 1 | . . . . . . . . . . . . . 1 . . . . . . . Sentry 9 | . . . . . . . 2 4 1 . . 1 . . 1 . . . . . Hunter 4 | . . . . . . . . . . . . . 1 1 . 2 . . . . Programmer 5 | . . . . . . . . . . 3 . . 1 . . 1 . . . . Best Kill Streak 7 | . 4 4 . 4 . 3 4 5 7 3 2 4 1 1 1 2 3 4 . 1 Combat Bots Only 7 | . 4 . . 4 . 3 4 5 7 2 2 3 1 1 1 1 3 4 . 1 Max Kills in Single Turn 4 | . 1 1 . 1 . 2 2 2 4 2 1 1 1 1 1 1 1 1 . 1 Gunslinging . | . . . . . . . . . . . . . . . . . . . . . Exploded 4 | . . . . . . 2 2 . 4 1 . . . . . . . . . . Melee 1 | . . . . . . . . . . 1 . . . . . 1 . . . . Uniques/NPCs Destroyed . | . . . . . . . . . . . . . . . . . . . . . Combat | -11 -10 -10 -9 -9 -9 -8 -8 -8 -8 -7 -7 -7 -7 -6 -6 -6 -6 -5 -5 -5 -------- Run | Scr Mat Min Mat Min Exi Min Mat Sto Gar Fac Gar Fac Gar Fac Gar Fac Gar Fac Gar Fac Damage Taken 12429 | . 386 . 370 75 . 119 117 952 196 563 1656 272 886 55 774 1171 1218 1147 1072 1400 Core 2553 | . 132 . 83 . . 3 9 126 55 122 353 11 57 21 143 181 241 423 171 422 Absorbed by Shields 333 | . . . . . . . . 63 . 23 . . . . . . 35 127 85 . Core Remaining (%) 57 | 100 . 47 . . . 78 . . 65 . . . 22 . . . 31 . . . Volleys Fired 366 | . 34 5 . 10 . 12 10 15 15 4 16 14 33 26 44 44 22 28 26 8 Largest 4 | . 2 2 . 1 . 1 4 4 1 1 4 3 3 3 3 3 3 2 2 2 Hottest 233 | . 70 70 . 23 . 33 88 91 36 36 233 84 84 84 84 103 120 75 138 66 Shots Fired 678 | . 49 10 . 10 . 12 23 57 62 31 30 41 79 30 46 78 42 37 28 13 Gun 431 | . 49 10 . 10 . 9 19 41 4 . 30 41 71 6 6 57 38 24 3 13 Cannon 110 | . . . . . . . . 16 47 27 . . . . . . . 6 14 . Launcher 22 | . . . . . . 3 4 . 11 4 . . . . . . . . . . Special 115 | . . . . . . . . . . . . . 8 24 40 21 4 7 11 . Kinetic 487 | . 34 5 . 10 . 9 19 57 51 27 13 41 71 6 6 53 28 28 16 13 Thermal 44 | . 5 5 . . . . . . . . 17 . . . . 4 10 2 1 . Explosive 22 | . . . . . . 3 4 . 11 4 . . . . . . . . . . Electromagnetic 10 | . 10 . . . . . . . . . . . . . . . . . . . Robot Hit Streak 16 | . 12 5 . 6 . 2 16 16 15 11 6 7 6 6 5 5 9 13 5 5 Robot Miss Streak 4 | . 4 . . 1 . 3 1 2 2 2 3 3 3 2 3 4 1 2 3 2 Penetration Max 1 | . . . . . . . . . . . . . 1 . . . 1 1 . 1 Secondary Targets 5 | . . . . . . . . 2 . . . 1 1 . . . 1 . . . Max Gunslinging Chain 1 | . . . . . . . . 1 . . . 1 1 . . . 1 . . . Autonomous 91 | . . . . . . . . 16 47 28 . . . . . . . . . . Shots Hit Robots 521 | . 34 5 . 8 . 4 17 53 47 31 28 24 52 18 33 68 22 44 16 17 Core Hits 179 | . 12 4 . 4 . 6 10 19 35 14 10 9 11 2 2 14 9 13 1 4 Critical Hits 14 | . 1 . . . . . . 1 3 . . 3 1 . . . . 2 1 2 Critical Kills 3 | . . . . . . . . 1 1 . . . . . . . . 1 . . Critical Parts Destroyed 10 | . 1 . . . . . . . 2 . . 2 1 . . . . 1 1 2 Melee Attacks 121 | . . . . . . . 6 13 2 12 18 . 3 . 24 12 . 22 . 9 Impact 38 | . . . . . . . . . . . 3 . 3 . 24 3 . 5 . . Slashing 33 | . . . . . . . 6 13 2 9 3 . . . . . . . . . Piercing . | . . . . . . . . . . . . . . . . . . . . . Sneak Attacks 34 | . . . . . . . 1 5 . 5 . . . . 1 7 . 10 . 5 Combat Hostiles 2 | . . . . . . . . . . . . . . . . 2 . . . . Follow-up Attacks . | . . . . . . . . . . . . . . . . . . . . . Damage Inflicted 14732 | . 425 63 . 126 . 299 660 2385 3700 2667 381 530 807 32 204 694 436 726 309 288 Guns 5021 | . 425 63 . 126 . 62 205 467 26 . 314 530 807 32 64 649 436 520 23 272 Cannons 6787 | . . . . . . . . 1367 2950 1988 . . . . . . . 196 286 . Explosions 1471 | . . . . . . 237 347 . 724 163 . . . . . . . . . . Melee 1426 | . . . . . . . 108 551 . 516 66 . . . 140 45 . . . . Ramming 27 | . . . . . . . . . . . 1 . . . . . . 10 . 16 Kinetic 11255 | . 328 50 . 126 . 62 205 1834 2976 1988 119 530 807 32 64 583 323 670 286 272 Thermal 494 | . 38 13 . . . . . . . . 195 . . . . 66 113 46 23 . Explosive 1471 | . . . . . . 237 347 . 724 163 . . . . . . . . . . Electromagnetic 59 | . 59 . . . . . . . . . . . . . . . . . . . Impact 230 | . . . . . . . . . . . 45 . . . 140 45 . . . . Slashing 1196 | . . . . . . . 108 551 . 516 21 . . . . . . . . . Piercing . | . . . . . . . . . . . . . . . . . . . . . Highest Corruption 10 | . . . . . . . . . . . 3 3 5 . . 3 3 . 5 10 Average Corruption 3 | . . . . . . . . . . . 3 3 3 . . 2 3 . 4 5 Corruption Purged . | . . . . . . . . . . . . . . . . . . . . . Effects 94 | . . . . . . . . . . . 16 9 7 . . 4 26 . 21 11 Message Errors 23 | . . . . . . . . . . . 5 1 1 . . 2 6 . 5 3 Matter Fused 32 | . . . . . . . . . . . 6 4 2 . . . 9 . 9 2 Heat Flow Errors 10 | . . . . . . . . . . . 3 2 . . . 1 3 . 1 . Energy Discharges 7 | . . . . . . . . . . . 2 . 1 . . . 3 . . 1 Parts Rejected 1 | . . . . . . . . . . . . . . . . . . . . 1 Data Loss (minor) 9 | . . . . . . . . . . . . . 1 . . . 3 . 4 1 Data Loss (major) 1 | . . . . . . . . . . . . . . . . . . . 1 . Misfires 1 | . . . . . . . . . . . . . . . . . . . 1 . Targeting Errors 9 | . . . . . . . . . . . . 1 2 . . 1 2 . . 3 Weapon Failures 1 | . . . . . . . . . . . . 1 . . . . . . . . Overload Shots . | . . . . . . . . . . . . . . . . . . . . . Overflow Damage 1997 | . . . . . . 18 73 522 465 902 12 . . . . . . 5 . . Projectiles 1521 | . . . . . . . . 338 465 713 . . . . . . . 5 . . Explosions 43 | . . . . . . 18 25 . . . . . . . . . . . . . Melee 433 | . . . . . . . 48 184 . 189 12 . . . . . . . . . Knockbacks 34 | . . . . . . . . 5 8 10 . . . . . . . 2 9 . Impact . | . . . . . . . . . . . . . . . . . . . . . Kinetic 33 | . . . . . . . . 5 8 10 . . . . . . . 2 8 . Secondary 1 | . . . . . . . . . . . . . . . . . . . 1 . Self-Inflicted Damage 92 | . . . . . . 42 . . 14 23 . . . . . . . 5 . 8 Shots 4 | . . . . . . 2 . . 1 1 . . . . . . . . . . Rammed 4 | . . . . . . . . . . . 1 . . . . . . 1 . 2 Targets Rammed 4 | . . . . . . . . . . . 1 . . . . . . 1 . 2 Kicked . | . . . . . . . . . . . . . . . . . . . . . Crushed . | . . . . . . . . . . . . . . . . . . . . . Highest Temperature 238 | . 27 45 1 . . 4 46 207 3 . 206 172 38 2 15 127 238 34 159 . Average Temperature 43 | . 13 22 1 . . 2 21 94 3 . 91 83 16 1 3 19 69 10 74 . Received Heat Transfer 2766 | . 144 . 204 . . . 36 420 81 66 390 18 63 9 93 99 489 225 348 81 Siege Activations . | . . . . . . . . . . . . . . . . . . . . . Robots Corrupted . | . . . . . . . . . . . . . . . . . . . . . Combat Hostiles . | . . . . . . . . . . . . . . . . . . . . . Parts Fried 1 | . . . . . . . . . . . 1 . . . . . . . . . Impact Corruptions 1 | . . . . . . . . . . . 1 . . . . . . . . . Robots Melted . | . . . . . . . . . . . . . . . . . . . . . Combat Hostiles . | . . . . . . . . . . . . . . . . . . . . . Parts Melted 1 | . . . . . . . . . . . 1 . . . . . . . . . Heat Transferred 1044 | . 111 37 . . . . . . . . 387 . . . . 150 222 100 37 . Parts Sabotaged 2 | . . . . . . . . . . . . . . . . . . 2 . . Parts Stolen . | . . . . . . . . . . . . . . . . . . . . . Parts Stripped . | . . . . . . . . . . . . . . . . . . . . . Power Chain Reactions . | . . . . . . . . . . . . . . . . . . . . . Missiles Intercepted . | . . . . . . . . . . . . . . . . . . . . . Alert | -11 -10 -10 -9 -9 -9 -8 -8 -8 -8 -7 -7 -7 -7 -6 -6 -6 -6 -5 -5 -5 ------- Run | Scr Mat Min Mat Min Exi Min Mat Sto Gar Fac Gar Fac Gar Fac Gar Fac Gar Fac Gar Fac Peak Influence 1051 | . 135 72 100 120 . 175 277 277 1025 726 965 685 623 348 341 488 1051 629 817 570 Initial 551 | . . 52 27 15 . . 68 32 180 537 501 506 479 326 133 176 167 551 301 428 Average 465 | . 96 58 60 72 . 127 194 174 681 537 768 602 560 253 289 297 788 468 629 472 Maximum Alert Level 3 | . . . . . . . 1 1 3 3 3 2 2 1 1 2 3 2 3 2 Low Security (%) 19 | 100 100 100 100 100 . 100 38 43 . . . . . 44 10 32 7 . . . Level 1 26 | . . . . . . . 61 56 13 . 1 . . 55 89 37 7 20 29 8 Level 2 33 | . . . . . . . . . 34 96 34 100 100 . . 30 13 79 3 91 Level 3 21 | . . . . . . . . . 51 3 64 . . . . . 70 . 66 . Level 4 . | . . . . . . . . . . . . . . . . . . . . . Level 5 . | . . . . . . . . . . . . . . . . . . . . . High Security . | . . . . . . . . . . . . . . . . . . . . . Max Security . | . . . . . . . . . . . . . . . . . . . . . Squads Dispatched 20 | . . . 3 . . . . 1 . 6 . . . 1 . 5 . 3 . 1 Investigation 4 | . . . 2 . . . . . . 1 . . . . . . . 1 . . Extermination 4 | . . . . . . . . . . 2 . . . . . . . 1 . 1 Reinforcement 7 | . . . 1 . . . . . . 2 . . . 1 . 3 . . . . Assault 2 | . . . . . . . . . . . . . . . . 1 . 1 . . Garrison 3 | . . . . . . . . 1 . 1 . . . . . 1 . . . . Intercept . | . . . . . . . . . . . . . . . . . . . . . Construction Impeded 1 | . . . . . . . . . . . . . . . . 1 . . . . Haulers Reinforced . | . . . . . . . . . . . . . . . . . . . . . Stealth | -11 -10 -10 -9 -9 -9 -8 -8 -8 -8 -7 -7 -7 -7 -6 -6 -6 -6 -5 -5 -5 --------- Run | Scr Mat Min Mat Min Exi Min Mat Sto Gar Fac Gar Fac Gar Fac Gar Fac Gar Fac Gar Fac Distress Signals 5 | . 1 . 1 . . . . . . 1 . . . 1 . . . 1 . . Communications Jammed . | . . . . . . . . . . . . . . . . . . . . . Distress Signals . | . . . . . . . . . . . . . . . . . . . . . Times Spotted 287 | . 11 . 9 4 . 5 9 14 20 18 23 9 12 8 32 21 28 25 22 17 Peak Tracking Total 11 | . 5 . 6 4 . 3 4 6 4 4 11 3 5 2 11 5 7 5 10 7 Tactical Retreats 11 | . . . . . . . . 2 2 . . 1 . . 2 . 1 . 3 . Traps | -11 -10 -10 -9 -9 -9 -8 -8 -8 -8 -7 -7 -7 -7 -6 -6 -6 -6 -5 -5 -5 ------- Run | Scr Mat Min Mat Min Exi Min Mat Sto Gar Fac Gar Fac Gar Fac Gar Fac Gar Fac Gar Fac Traps Triggered 35 | . . . . . . . . . 3 . 6 . 4 . 12 . 5 1 4 . Indirectly . | . . . . . . . . . . . . . . . . . . . . . Trap Hack Attempts 93 | . . . . . . . . . . . 76 . . . . . 17 . . . Triggered . | . . . . . . . . . . . . . . . . . . . . . Disarmed 1 | . . . . . . . . . . . . . . . . . 1 . . . Reprogrammed 5 | . . . . . . . . . . . 4 . . . . . 1 . . . Reused . | . . . . . . . . . . . . . . . . . . . . . Traps Extracted . | . . . . . . . . . . . . . . . . . . . . . Installed . | . . . . . . . . . . . . . . . . . . . . . Triggered . | . . . . . . . . . . . . . . . . . . . . . Machines | -11 -10 -10 -9 -9 -9 -8 -8 -8 -8 -7 -7 -7 -7 -6 -6 -6 -6 -5 -5 -5 ---------- Run | Scr Mat Min Mat Min Exi Min Mat Sto Gar Fac Gar Fac Gar Fac Gar Fac Gar Fac Gar Fac Machines Disabled 29 | . . . . . . . . . 6 2 3 . 2 1 4 3 4 1 3 . Max in Single Turn 1 | . . . . . . . . . 1 1 1 . 1 . 1 1 1 . 1 . Garrison Access 1 | . . . . . . . . . . . . . . . . 1 . . . . Garrison Relay 17 | . . . . . . . . . 2 . 3 . 2 . 4 . 4 . 2 . Machines Sabotaged . | . . . . . . . . . . . . . . . . . . . . . Garrisons Compromised . | . . . . . . . . . . . . . . . . . . . . . Overloaded Fab Kills . | . . . . . . . . . . . . . . . . . . . . . Fab Network Shutdowns . | . . . . . . . . . . . . . . . . . . . . . Hacking | -11 -10 -10 -9 -9 -9 -8 -8 -8 -8 -7 -7 -7 -7 -6 -6 -6 -6 -5 -5 -5 --------- Run | Scr Mat Min Mat Min Exi Min Mat Sto Gar Fac Gar Fac Gar Fac Gar Fac Gar Fac Gar Fac Machines Accessed 31 | . 4 . 5 . 1 . 1 2 . 4 . 1 . 5 . 3 . 3 . 2 Terminals 20 | . 4 . 5 . . . 1 1 . 2 . . . 2 . 2 . 2 . 1 Fabricators 4 | . . . . . . . . . . 1 . . . 2 . . . . . 1 Repair Stations . | . . . . . . . . . . . . . . . . . . . . . Recycling Units . | . . . . . . . . . . . . . . . . . . . . . Scanalyzers . | . . . . . . . . . . . . . . . . . . . . . Garrison Access 6 | . . . . . . . . 1 . 1 . 1 . 1 . 1 . 1 . . Total Hacks 75 | . 10 . 16 . 1 . 2 3 . 8 . 1 . 11 . 11 . 3 . 9 Successful 28 | . 2 . 7 . 1 . 2 1 . 3 . 1 . 3 . 3 . 2 . 3 Failed 47 | . 8 . 9 . . . . 2 . 5 . . . 8 . 8 . 1 . 6 Catastrophic 10 | . 3 . . . . . . 1 . . . . . 2 . 2 . 1 . 1 Database Lockouts . | . . . . . . . . . . . . . . . . . . . . . Manual 52 | . 7 . 15 . 1 . 2 2 . 4 . . . 6 . 9 . 2 . 4 Terminals 56 | . 10 . 16 . . . 2 2 . 5 . . . 6 . 10 . 2 . 3 Fabricators 12 | . . . . . . . . . . 2 . . . 4 . . . . . 6 Repair Stations . | . . . . . . . . . . . . . . . . . . . . . Recycling Units . | . . . . . . . . . . . . . . . . . . . . . Scanalyzers . | . . . . . . . . . . . . . . . . . . . . . Garrison Access 6 | . . . . . . . . 1 . 1 . 1 . 1 . 1 . 1 . . Terminal Hacks 8 | . 2 . 3 . 1 . 2 . . . . . . . . . . . . . Part Schematic 5 | . 1 . 2 . . . 2 . . . . . . . . . . . . . Locate Traps 1 | . . . 1 . . . . . . . . . . . . . . . . . Zone Layout 1 | . 1 . . . . . . . . . . . . . . . . . . . EX-Prototype ID Bank 1 | . . . . . 1 . . . . . . . . . . . . . . . Fabricator Hacks 2 | . . . . . . . . . . . . . . . . . . . . 2 Load Schematic 1 | . . . . . . . . . . . . . . . . . . . . 1 Build 1 | . . . . . . . . . . . . . . . . . . . . 1 Repair Station Hacks . | . . . . . . . . . . . . . . . . . . . . . Recycling Unit Hacks . | . . . . . . . . . . . . . . . . . . . . . Scanalyzer . | . . . . . . . . . . . . . . . . . . . . . Garrison Access Hacks 6 | . . . . . . . . 1 . 1 . 1 . 1 . 1 . 1 . . Unlock Access 6 | . . . . . . . . 1 . 1 . 1 . 1 . 1 . 1 . . Unauthorized Hacks 12 | . . . 4 . . . . . . 2 . . . 2 . 2 . 1 . 1 Terminals 11 | . . . 4 . . . . . . 2 . . . 2 . 2 . 1 . . Track 1 | . . . . . . . . . . . . . . . . . . 1 . . Assimilate 1 | . . . 1 . . . . . . . . . . . . . . . . . Botnet 5 | . . . 2 . . . . . . 1 . . . 1 . 1 . . . . Operators 4 | . . . 1 . . . . . . 1 . . . 1 . 1 . . . . Fabricators 1 | . . . . . . . . . . . . . . . . . . . . 1 Prioritize 1 | . . . . . . . . . . . . . . . . . . . . 1 Repair Stations . | . . . . . . . . . . . . . . . . . . . . . Recycling Units . | . . . . . . . . . . . . . . . . . . . . . Scanalyzers . | . . . . . . . . . . . . . . . . . . . . . Garrison Access . | . . . . . . . . . . . . . . . . . . . . . Data Cores Recovered . | . . . . . . . . . . . . . . . . . . . . . Used . | . . . . . . . . . . . . . . . . . . . . . Hacking Detections 23 | . 4 . 4 . . . 1 1 . 3 . 1 . 5 . 2 . . . 2 Full Trace Events 3 | . . . 2 . . . . . . 1 . . . . . . . . . . Feedback Events . | . . . . . . . . . . . . . . . . . . . . . Feedback Blocked . | . . . . . . . . . . . . . . . . . . . . . Robot Schematics Acquired . | . . . . . . . . . . . . . . . . . . . . . Robots Built . | . . . . . . . . . . . . . . . . . . . . . Matter . | . . . . . . . . . . . . . . . . . . . . . Time . | . . . . . . . . . . . . . . . . . . . . . Total Robot Build Rating . | . . . . . . . . . . . . . . . . . . . . . Part Schematics Acquired 4 | . 1 . 2 . . . 1 . . . . . . . . . . . . . Parts Built 1 | . . . . . . . . . . . . . . . . . . . . 1 Matter 102 | . . . . . . . . . . . . . . . . . . . . 102 Time 25 | . . . . . . . . . . . . . . . . . . . . 25 Total Part Build Rating 1 | . . . . . . . . . . . . . . . . . . . . 1 Parts Repaired . | . . . . . . . . . . . . . . . . . . . . . Time . | . . . . . . . . . . . . . . . . . . . . . Parts Recycled . | . . . . . . . . . . . . . . . . . . . . . Recycled Matter . | . . . . . . . . . . . . . . . . . . . . . Retrieved Matter . | . . . . . . . . . . . . . . . . . . . . . Retrieved Components . | . . . . . . . . . . . . . . . . . . . . . Parts Scanalyzed . | . . . . . . . . . . . . . . . . . . . . . Part Schematics Acquired . | . . . . . . . . . . . . . . . . . . . . . Parts Damaged . | . . . . . . . . . . . . . . . . . . . . . Bothacking | -11 -10 -10 -9 -9 -9 -8 -8 -8 -8 -7 -7 -7 -7 -6 -6 -6 -6 -5 -5 -5 ------------ Run | Scr Mat Min Mat Min Exi Min Mat Sto Gar Fac Gar Fac Gar Fac Gar Fac Gar Fac Gar Fac Used RIF Installer 6 | . . . . . . . . . 1 . 1 . 1 . 1 . 1 . 1 . Coupler Efficiency 1 | . . . . . . . . . . . 1 . . . . . . . . . Command Fork 1 | . . . . . . . . . . . . . . . . . . . 1 . Zone Cloak 2 | . . . . . . . . . . . . . 1 . 1 . . . . . Program Shield 1 | . . . . . . . . . . . . . . . . . 1 . . . Robots Hacked 96 | . . . . . . . . . . 2 7 . 7 14 22 14 2 16 7 5 Non-combat 35 | . . . . . . . . . . 1 . . 1 10 . 5 . 13 . 5 Combat 61 | . . . . . . . . . . 1 7 . 6 4 22 9 2 3 7 . Robot Hacks Applied 108 | . . . . . . . . . . 3 7 . 7 16 22 17 2 19 8 7 parse_system 1 | . . . . . . . . . . . . . 1 . . . . . . . start_evac 1 | . . . . . . . . . . . . . . . . . . 1 . . deconstruct_machine 1 | . . . . . . . . . . . . . . 1 . . . . . . map_walls 13 | . . . . . . . . . . . . . . 5 . 1 . 5 . 2 randomize_corridors 1 | . . . . . . . . . . . . . . . . 1 . . . . map_earth 1 | . . . . . . . . . . . . . . . . 1 . . . . drop_inventory 4 | . . . . . . . . . . 1 . . . 2 . . . . . 1 locate_stockpiles 1 | . . . . . . . . . . . . . . . . . . . . 1 map_route 4 | . . . . . . . . . . . . . . 1 . . . 2 . 1 relay_feed 3 | . . . . . . . . . . . . . . . . . . 1 . 2 find_garrison 4 | . . . . . . . . . . 1 . . . 1 . 2 . . . . scatter_targeting 1 | . . . . . . . . . . . . . . . . 1 . . . . reboot_system 3 | . . . . . . . . . . . . . . . 2 . . 1 . . overwrite_iff 24 | . . . . . . . . . . . 5 . 1 . 9 5 . . 4 . streamctrl_low 1 | . . . . . . . . . . . . . . . . . . 1 . . formatsys_low 11 | . . . . . . . . . . . . . . 2 . 4 . 5 . . formatsys_high 34 | . . . . . . . . . . 1 2 . 5 4 11 2 2 3 4 . Relay Couplers Released 71 | . . . . . . . . . 8 . 12 . 7 . 18 1 17 . 8 . Machine Destruction 71 | . . . . . . . . . 8 . 12 . 7 . 18 1 17 . 8 . Attached 44 | . . . . . . . . . . 2 5 . 3 4 8 3 9 4 4 2 Robots Rewired . | . . . . . . . . . . . . . . . . . . . . . Allies Hacked . | . . . . . . . . . . . . . . . . . . . . . Hacks Repelled . | . . . . . . . . . . . . . . . . . . . . . Allies | -11 -10 -10 -9 -9 -9 -8 -8 -8 -8 -7 -7 -7 -7 -6 -6 -6 -6 -5 -5 -5 -------- Run | Scr Mat Min Mat Min Exi Min Mat Sto Gar Fac Gar Fac Gar Fac Gar Fac Gar Fac Gar Fac Total Allies 70 | . . . 1 . . . . . . 1 7 . 6 6 20 11 2 9 7 . Largest Group 7 | . . . 1 . . . . . . 1 1 . 3 7 7 5 2 6 5 . Highest-Rated Group 199 | . . . 10 . . . . . . 32 30 . 92 190 199 145 73 136 171 . Highest-Rated Ally 49 | . . . 10 . . . . . . 32 30 . 38 41 41 32 41 49 49 . Total Orders 10 | . . . . . . . . . . . 1 . . . . 1 4 1 2 1 STAY 1 | . . . . . . . . . . . . . . . . . . . 1 . FOLLOW 1 | . . . . . . . . . . . . . . . . . 1 . . . AID 1 | . . . . . . . . . . . . . . . . 1 . . . . RETURN 7 | . . . . . . . . . . . 1 . . . . . 3 1 1 1 Ally Attacks 543 | . . . . . . . . . . 13 91 . 15 28 92 58 93 39 74 40 Total Damage 13149 | . . . . . . . . . . 421 1490 . 261 811 1940 1206 2387 1453 2461 719 Kills 106 | . . . . . . . . . . 6 16 . 2 4 10 6 25 9 21 7 Allies Corrupted 3 | . . . . . . . . . . . . . . . 1 . 1 1 . . Allies Melted 1 | . . . . . . . . . . . . . . . . . 1 . . . Intel | -11 -10 -10 -9 -9 -9 -8 -8 -8 -8 -7 -7 -7 -7 -6 -6 -6 -6 -5 -5 -5 ------- Run | Scr Mat Min Mat Min Exi Min Mat Sto Gar Fac Gar Fac Gar Fac Gar Fac Gar Fac Gar Fac Robot Analysis Total . | . . . . . . . . . . . . . . . . . . . . . Derelict Logs Recovered 3 | . . 1 . 2 . . . . . . . . . . . . . . . . Drone Launches 112 | . . . . . . . . . . . 30 . . . . . 49 5 16 12 Drone Recoveries 97 | . . . . . . . . . . . 28 . . . . . 44 5 13 7 Exploration | -11 -10 -10 -9 -9 -9 -8 -8 -8 -8 -7 -7 -7 -7 -6 -6 -6 -6 -5 -5 -5 ------------- Run | Scr Mat Min Mat Min Exi Min Mat Sto Gar Fac Gar Fac Gar Fac Gar Fac Gar Fac Gar Fac Turns Passed 12765 | 39 324 183 107 280 472 332 404 389 973 713 1059 318 516 719 1454 621 1233 1402 788 439 Spaces Moved 7677 | 35 233 165 97 256 438 273 212 104 637 452 637 165 265 465 835 336 885 540 396 251 Core 46 | 2 . . . . . . . 5 . . 2 . . . . . . 34 . 3 Treads . | . . . . . . . . . . . . . . . . . . . . . Legs . | . . . . . . . . . . . . . . . . . . . . . Wheels 7631 | 33 233 165 97 256 438 273 212 99 637 452 635 165 265 465 835 336 885 506 396 248 Hover . | . . . . . . . . . . . . . . . . . . . . . Flight . | . . . . . . . . . . . . . . . . . . . . . Fastest Speed 50 | 50 90 100 100 100 100 110 110 120 130 120 50 120 130 140 130 130 100 50 140 50 Average Speed 133 | 87 98 100 101 100 104 110 117 236 138 139 117 149 136 140 139 138 113 197 159 133 Slowest Speed 2150 | 90 100 100 120 110 110 110 150 2150 140 140 130 170 200 140 140 140 140 1500 170 160 Overloaded Moves . | . . . . . . . . . . . . . . . . . . . . . Propulsion Burnouts . | . . . . . . . . . . . . . . . . . . . . . Robots Hopped . | . . . . . . . . . . . . . . . . . . . . . Cave-ins Triggered . | . . . . . . . . . . . . . . . . . . . . . Exploration Rate (%) 37 | 3 51 39 16 52 61 73 13 21 68 17 56 7 56 15 88 11 71 18 45 8 Regions Visited 20 Branch Regions 5 Pre-discovered Areas 1 | . . . . 1 . . . . . . . . . . . . . . . . Known Exits Taken 7 | . . . . . . 1 . 1 . 1 . 1 . 1 . 1 . 1 . . Unknown Exits Taken 7 | 1 1 1 1 1 1 . 1 . . . . . . . . . . . . . Scrap Searched 4 | . . . . 2 . 2 . . . . . . . . . . . . . . Spaces Dug 24 | . . . . . . . 3 6 7 3 . . . . . 2 . 3 . . Terrain Destroyed 173 | . . . . . . 37 32 6 57 21 . . 7 1 . 2 . 5 4 1 Melee 17 | . . . . . . . 3 6 . 3 . . . . . 2 . 3 . . Projectile 28 | . . . . . . . . . 9 4 . . 7 1 . . . 2 4 1 AOE 128 | . . . . . . 37 29 . 48 14 . . . . . . . . . . Terrain Rammed . | . . . . . . . . . . . . . . . . . . . . . Walls Destroyed . | . . . . . . . . . . . . . . . . . . . . . Machines Disabled . | . . . . . . . . . . . . . . . . . . . . . Actions | -11 -10 -10 -9 -9 -9 -8 -8 -8 -8 -7 -7 -7 -7 -6 -6 -6 -6 -5 -5 -5 --------- Run | Scr Mat Min Mat Min Exi Min Mat Sto Gar Fac Gar Fac Gar Fac Gar Fac Gar Fac Gar Fac Total 9616 | 40 276 173 105 271 452 294 342 197 703 516 907 205 356 516 1065 422 1083 826 532 335 Wait 583 | . 3 . . . . 5 97 49 10 9 35 6 . 18 31 2 67 184 37 30 Move 7662 | 34 232 164 96 255 437 272 211 104 636 452 636 165 264 464 834 336 884 540 395 251 Hop . | . . . . . . . . . . . . . . . . . . . . . Pick Up 184 | 1 3 4 6 4 5 2 2 . 7 9 33 4 8 1 20 8 26 20 16 5 Fast Attach 74 | 5 4 . . . . 1 6 3 1 5 6 6 . . 3 1 9 9 9 6 Attach 102 | . . . 3 2 1 1 1 5 . 3 21 2 6 3 14 4 12 9 8 7 Detach 14 | . . . . . . . 1 1 . 1 3 . . 1 3 . 3 . 1 . Swap 47 | . . . . . 5 . 2 7 6 4 4 1 3 2 1 6 4 2 . . Drop 103 | . . . . . 4 1 6 . 2 16 9 7 3 . 8 5 13 6 6 17 Fire 366 | . 34 5 . 10 . 12 10 15 15 4 16 14 33 26 44 44 22 28 26 8 Melee 121 | . . . . . . . 6 13 2 12 18 . 3 . 24 12 . 22 . 9 Ram 4 | . . . . . . . . . . . 1 . . . . . . 1 . 2 Kick . | . . . . . . . . . . . . . . . . . . . . . Crush . | . . . . . . . . . . . . . . . . . . . . . Escape Stasis 241 | . . . . . . . . . 24 . 48 . 32 . 80 . 25 . 32 . Rewire 22 | . . . . . . . . . . 1 1 . 4 1 3 4 1 5 2 . Trap 93 | . . . . . . . . . . . 76 . . . . . 17 . . . Miscellaneous . | . . . . . . . . . . . . . . . . . . . . . Route ------- -11/Scrapyard -10/Materials -10/Mines -9/Materials (discovered 2 exits: Mat / [*Min]) -9/Mines -9/Exiles -8/Mines -8/Materials -8/Storage -8/Garrison (discovered 3 exits: *Fac x3) -7/Factory -7/Garrison -7/Factory -7/Garrison (discovered 2 exits: *Fac x2) -6/Factory -6/Garrison (discovered 3 exits: *Fac x3) -6/Factory (discovered 2 exits: *Fac / Gar) -6/Garrison (discovered 2 exits: *Fac x2) -5/Factory (discovered 2 exits: [Fac] / Gar) -5/Garrison -5/Factory History --------- Turn | Location | Event 24 | -11/Scrapyard | Discovered new exit (range 15) 40 | -11/Scrapyard | Entered Materials 139 | -10/Materials | Core integrity fell below 50% 235 | -10/Materials | Discovered new exit (range 12) 304 | -10/Materials | Build established: Mutant 364 | -10/Materials | Entered Mines 395 | -10/Mines | Learned 2 Materials zone layouts 536 | -10/Mines | Discovered new exit (range 12) 547 | -10/Mines | Entered Materials 547 | -9/Materials | Evolved 2 slots: Utility x2 548 | -9/Materials | Identified exit to Materials 598 | -9/Materials | Discovered new exit (range 15) 654 | -9/Materials | Entered Mines 678 | -9/Mines | Received a Rocket Launcher from a helpful Derelict 678 | -9/Mines | Lost 5 parts (1p2n2w) 709 | -9/Mines | Learned Materials stockpile data 711 | -9/Mines | Learned location of Storage (-8) 867 | -9/Mines | Deemed a non-threat by the Exiles lab entrance 867 | -9/Mines | Discovered new exit (range 5) 911 | -9/Mines | Learned 4 Materials zone layouts 934 | -9/Mines | Entered Exiles 959 | -9/Exiles | Met 8R-AWN 974 | -9/Exiles | Met EX-HEX 1005 | -9/Exiles | Met EX-BIN 1062 | -9/Exiles | Aligned with FarCom system 1063 | -9/Exiles | Given EX-Vault access code 1086 | -9/Exiles | Opened EX-Vault 1099 | -9/Exiles | Found Skeleton Box 1124 | -9/Exiles | Warned to stay clear of 0b10 Research branches 1149 | -9/Exiles | Met EX-DEC 1282 | -9/Exiles | Found Army-in-a-Box 1289 | -9/Exiles | Found AWS/Autocannon 1382 | -9/Exiles | Discovered new exit (range 14) 1406 | -9/Exiles | Stole three prototypes: Skeleton Box, Army-in-a-Box, AWS/Autocannon 1406 | -9/Exiles | Entered Mines 1480 | -8/Mines | Build established: Hauler-Mutant 1730 | -8/Mines | Discovered exit to Materials (range 9) 1738 | -8/Mines | Entered Materials 1738 | -8/Materials | Evolved 2 slots: Weapon x2 1888 | -8/Materials | Discovered new exit (range 15) 2142 | -8/Materials | Entered Storage 2203 | -8/Storage | Garrison activated, responded to threat 2235 | -8/Storage | Build established: Hauler-Skirmisher 2336 | -8/Storage | Lost 9 parts (2p3n1u3w) 2531 | -8/Storage | Identified exit to Garrison 2531 | -8/Storage | Entered Garrison 2652 | -8/Garrison | Triggered checkpoint 2667 | -8/Garrison | Triggered checkpoint 2683 | -8/Garrison | Triggered checkpoint 2712 | -8/Garrison | Destroyed 7 combat bots 2755 | -8/Garrison | Discovered new exit (range 10) 2825 | -8/Garrison | Triggered checkpoint 2912 | -8/Garrison | Discovered new exit (range 13) 3029 | -8/Garrison | Discovered new exit (range 15) 3057 | -8/Garrison | Installed Relay Interface Framework 3272 | -8/Garrison | Triggered checkpoint 3277 | -8/Garrison | Garrison Relay disabled 3404 | -8/Garrison | Triggered checkpoint 3441 | -8/Garrison | Garrison Relay disabled 3504 | -8/Garrison | Entered Factory 3504 | -7/Factory | Evolved 2 slots: Utility x2 3506 | -7/Factory | FarCom data flow suspended 4194 | -7/Factory | Garrison activated, responded to threat 4217 | -7/Factory | Identified exit to Garrison 4217 | -7/Factory | Entered Garrison 4223 | -7/Garrison | Expanded RIF knowledge: Coupler Efficiency 4256 | -7/Garrison | Triggered checkpoint 4269 | -7/Garrison | Garrison Relay disabled 4475 | -7/Garrison | Build established: Bothacker-Mutant 4519 | -7/Garrison | Triggered checkpoint 4526 | -7/Garrison | Triggered checkpoint 4549 | -7/Garrison | Core integrity fell below 50% 4566 | -7/Garrison | Lost 5 parts (1p1n1u2w) 4566 | -7/Garrison | Triggered checkpoint 4818 | -7/Garrison | Triggered checkpoint 4858 | -7/Garrison | Garrison Relay disabled 4867 | -7/Garrison | Lost 5 parts (1p1u3w) 5026 | -7/Garrison | Triggered checkpoint 5085 | -7/Garrison | Garrison Relay disabled 5261 | -7/Garrison | Discovered new exit (range 13) 5276 | -7/Garrison | Entered Factory 5591 | -7/Factory | Build established: Scavenger-Tank 5594 | -7/Factory | Identified exit to Garrison 5594 | -7/Factory | Entered Garrison 5716 | -7/Garrison | Triggered checkpoint 5767 | -7/Garrison | Discovered new exit (range 9) 5818 | -7/Garrison | Garrison Relay disabled 5820 | -7/Garrison | Triggered checkpoint 5892 | -7/Garrison | Triggered checkpoint 5994 | -7/Garrison | Triggered checkpoint 6027 | -7/Garrison | Garrison Relay disabled 6081 | -7/Garrison | Discovered new exit (range 12) 6105 | -7/Garrison | Expanded RIF knowledge: Zone Cloak 6110 | -7/Garrison | Entered Factory 6110 | -6/Factory | Accompanied by 2 allies 6110 | -6/Factory | Evolved 2 slots: Utility x2 6305 | -6/Factory | Build established: Bothacker-Mutant 6770 | -6/Factory | Identified exit to Garrison 6829 | -6/Factory | Entered Garrison 6829 | -6/Garrison | Accompanied by 4 allies 6888 | -6/Garrison | Triggered checkpoint 6921 | -6/Garrison | Garrison Relay disabled 7022 | -6/Garrison | Triggered checkpoint 7024 | -6/Garrison | Lost 3 parts (3w) 7038 | -6/Garrison | Triggered checkpoint 7074 | -6/Garrison | Triggered checkpoint 7128 | -6/Garrison | Discovered new exit (range 13) 7202 | -6/Garrison | Triggered checkpoint 7218 | -6/Garrison | Garrison Relay disabled 7382 | -6/Garrison | Triggered checkpoint 7426 | -6/Garrison | Discovered new exit (range 10) 7508 | -6/Garrison | Garrison Relay disabled 7646 | -6/Garrison | Discovered new exit (range 10) 7670 | -6/Garrison | Expanded RIF knowledge: Zone Cloak 7702 | -6/Garrison | Triggered checkpoint 7735 | -6/Garrison | Garrison Relay disabled 7968 | -6/Garrison | Build established: Botlord-Mutant 8283 | -6/Garrison | Entered Factory 8283 | -6/Factory | Accompanied by 3 allies 8330 | -6/Factory | Discovered new exit (range 13) 8715 | -6/Factory | Lost 4 parts (2p1u1w) 8816 | -6/Factory | Garrison activated, responded to threat 8904 | -6/Factory | Identified exit to Garrison 8904 | -6/Factory | Entered Garrison 8911 | -6/Garrison | Expanded RIF knowledge: Program Shield 8946 | -6/Garrison | Triggered checkpoint 8968 | -6/Garrison | Triggered checkpoint 8982 | -6/Garrison | Core integrity fell below 50% 9023 | -6/Garrison | Lost 6 parts (1n3u2w) 9028 | -6/Garrison | Garrison Relay disabled 9114 | -6/Garrison | Discovered new exit (range 15) 9146 | -6/Garrison | Triggered checkpoint 9178 | -6/Garrison | Garrison Relay disabled 9250 | -6/Garrison | Triggered checkpoint 9266 | -6/Garrison | Triggered checkpoint 9277 | -6/Garrison | Build established: Mutant 9422 | -6/Garrison | Triggered checkpoint 9444 | -6/Garrison | Garrison Relay disabled 9537 | -6/Garrison | Discovered new exit (range 9) 9674 | -6/Garrison | Garrison Relay disabled 10059 | -6/Garrison | Build established: Botlord-Mutant 10137 | -6/Garrison | Entered Factory 10137 | -5/Factory | Evolved 2 slots: Utility x2 10437 | -5/Factory | First assault squad dispatched 10692 | -5/Factory | Lost 4 parts (1u3w) 11345 | -5/Factory | Discovered new exit (range 81) 11539 | -5/Factory | Identified exit to Garrison 11539 | -5/Factory | Entered Garrison 11604 | -5/Garrison | Triggered checkpoint 11650 | -5/Garrison | Garrison Relay disabled 11743 | -5/Garrison | Triggered checkpoint 11748 | -5/Garrison | Triggered checkpoint 11770 | -5/Garrison | Core integrity fell below 50% 11819 | -5/Garrison | Lost 10 parts (1p1n4u4w) 11939 | -5/Garrison | Discovered new exit (range 15) 11973 | -5/Garrison | Expanded RIF knowledge: Command Fork 12010 | -5/Garrison | Triggered checkpoint 12041 | -5/Garrison | Garrison Relay disabled 12327 | -5/Garrison | Entered Factory 12342 | -5/Factory | Build established: Scavenger-Mutant 12441 | -5/Factory | Fabricated Datajack (x1) 12619 | -5/Factory | Found Tesla Bomb Launcher 12713 | -5/Factory | Lost 6 parts (2n1u3w) 12756 | -5/Factory | Core integrity fell below 20% 12758 | -5/Factory | Spotted B-75 Beast 12762 | -5/Factory | System corruption reached 10% 12766 | -5/Factory | Destroyed by B-75 Beast with Heavy Plasma Cannon Last Messages --------------- 12725_ K-01 Serf collects debris. 12726_ <|NH6%,V2AHC%%RF,3L2UN 12726_ U-05 Engineer builds a Wall. 12726_ U-05 Engineer lays Concrete. 12727_ ALERT: Rogue bot located, Programmers report to Factory Zone 3R. 12727_ U-05 Engineer lays Concrete. 12729_ K-01 Serf collects debris. 12729_ U-05 Engineer lays Concrete. 12730_ U-05 Engineer builds a Wall. 12731_ U-05 Engineer lays Concrete. 12733_ U-05 Engineer builds a Wall. 12733_ U-05 Engineer lays Concrete. 12756_ Relay Coupler [Sentry] destroyed. 12760_ Slammed into S-27 Virus. 12760_ Mic. Fission Core destroyed. 12760_ Wheel destroyed. 12761_ Slammed into S-27 Virus. 12761_ Wheel destroyed. 12761_ System corrupted by crushing effect (+5). 12764_ Relay Coupler [Sentry] destroyed. Map ----- +----------------------------------------------------+ | ????# # """ # "?????????? | | ????# """"""""" # """ ######### ## "?????????? | | ????# # """ #???????# ## "?????????? | | ????# """"""""" # #??######+## ???????? | | ????# # """ #??# ########??????? | | ????# """"""""" + """ #??# T = #?????????????? | | ????# # """ #### ?#?????????????? | | ?#??######+####### + !???????????????? | | # ###????# # ! ## """ #### ???????????????? | | ###### # ## """ #??# ???????????????? | | # # # ## """ #??#######??????????????? | | !! # # # ! ## #???######??????????????? | | !! # # # ## ##### ???????????????? | | !! # # # [ ## # + ???????????????? | | # # # ## # # ???????????????? | | # # ##+### # # ???????????????? | | =# ! + # + ???????????????? | | # # ######## # ???????????????? | | # # ######## ####+##?????????????? | | ? ###### # # ??????????????? | | ? #??# # "" # ???????????????? | | ##+##??# # """#"" ????????????????? | | ?# #???# # S"#"" """ "???????????????? | | ?# #???# + """#G """ ""??????????????? | | ?# #???# # ""?#""ss """ """ ?????????? | | ?# #???# # #""@% =????????? | | ?#*#???# #+###### ????????? | | ?#%#???# #????#s ????????? | | ##=##### #????#s ;BB### #####?????????? | | %% = #????# #BB#?#?? #?????????????? | | ##+##+#### #????# ####?#?????????????????? | | # ## #????# #??????????????????????? | | * " """"" ## ###### #??????????????????????? | | #####"# ""T"" + #??????????????????????? | | ###?### #############??????????????????????? | | ??????# #??????????????????????????????????? | | ??????# = #??????????????????????????????????? | | ??????# #??????????????????????????????????? | | ??????#########??????????????????????????????????? | | ?????????????????????????????????????????????????? | | ?????????????????????????????????????????????????? | | ?????????????????????????????????????????????????? | | ?????????????????????????????????????????????????? | | ????????????????????????????????????????!????????? | | ?????????????????????????????????????????????????? | | ?????????????????????????????????????????????????? | | ?????????????????????????????????????????????????? | | ?????????????????????????????????????????????????? | | ?????????????????????????????????????????????????? | | ?????????????????????????????????????????????????? | +----------------------------------------------------+ Best States ------------- Heat Dissipation 62 Energy Generation 21 Energy Capacity 310 Matter Stores 300 Matter Capacity 300 Sight Range 16 Terrain Scan Density 10 Armor Coverage 300 Evasion (%) 50 Targeting Accuracy 5 Salvage Targeting 1 Offensive Hacking 12 Defensive Hacking 20 Relay Coupler Types 171 Relay Coupler Value 7 Item Schematics ----------------- Datajack | -10/Materials | Hacked Com. Wheel | -9/Materials | Hacked Arm. Wheel | -9/Materials | Hacked Hcp. Matter Pod | -8/Materials | Hacked Robot Schematics ------------------ None Fabricated ------------ Datajack | x1 | -5/Factory Alien Tech Used ----------------- None Achievements -------------- None Challenges ------------ None Game ------ Seed SniperVortexMachine Manual? 0 Play Time 02:34:15 Cumulative 109.7 hours Start 2021.06.11 @ 23:45:44 End 2021.06.12 @ 06:09:23 Sessions 1 Manual Loads 0 Difficulty Rogue Special Mode None Game No. 161 Rogue 161 Adventurer 0 Explorer 0 Win Type - Total 3 Types 2/0/0/1/0/0/0/0/0 Lore% 48 Gallery% 69 Achievement% 57 Wizard Run 0 Options --------- ASCII 0 Keyboard 0 Movement Mouse Keybinds 0 Fullscreen 1 Font 18/Terminus Map View 76x50 Tactical HUD 1 Map Filters NONE Filters NONE Steam 1 RUN: 5f156014-9898-4d37-a33d-315c18e1a046